fUSD/lending_fUSD_20260107
["ID","MTS","AMOUNT","RATE_DAILY","PERIOD"]
[400765432,1767822604479,-10000.01,0.00014297,2]
[400765433,1767822604606,-10000.01,0.00014297,2]
[400765434,1767822605252,-252.70396908,0.00014297,2]
[400765435,1767822606551,-10000.01,0.00014297,2]
[400765436,1767822609795,-10000.01,0.00014297,2]
[400765437,1767822610011,-10000.01,0.00014297,2]
[400765438,1767822610161,-10000.01,0.00014297,2]
[400765439,1767822610279,-10000.01,0.00014297,2]
[400765440,1767822610449,-10000.01,0.00014297,2]
[400765441,1767822610518,-10000.01,0.00014297,2]
[400765442,1767822612799,-10000.01,0.00014297,2]
[400765443,1767822612843,-10000.01,0.00014297,2]
[400765444,1767822615969,-10000.01,0.00014297,2]
[400765445,1767822616015,-10000.01,0.00014297,2]
[400765446,1767822616121,-10000.01,0.00014297,2]
[400765447,1767822616233,-10000.01,0.00014297,2]
[400765448,1767822616297,-10000.01,0.00014297,2]
[400765451,1767822631317,-965.62,0.00014287,2]
[400765452,1767822631328,-965.62,0.00014287,2]
[400765453,1767822631337,-8826.59684707,0.00014297,2]
[400765454,1767822631348,-1126.61412583,0.00014297,2]
[400765455,1767822631383,-34274.23444245,0.00014297,2]
[400765456,1767822631417,-638.67352101,0.00014297,2]
[400765457,1767822631428,-1659.78841062,0.00014297,2]
[400765458,1767822631487,-30657.44257446,0.00014297,2]
[400765459,1767822631499,-10953.05059445,0.00014297,2]
[400765460,1767822631511,-2083.5064752,0.00014297,2]
[400765467,1767822637669,-275.29909472,0.00014296,2]
[400765468,1767822637679,-472.96984095,0.00014296,2]
[400765469,1767822637699,-27.03015905,0.00014296,2]
[400765471,1767822637708,-416.95862862,0.00014296,2]
[400765473,1767822637718,-494.82506855,0.00014296,2]
[400765475,1767822637727,-500.0,0.00014296,2]
[400765477,1767822637737,-496.73251178,0.00014296,2]
[400765479,1767822637746,-500.0,0.00014296,2]
[400765481,1767822637755,-500.0,0.00014296,2]
[400765483,1767822637765,-500.0,0.00014296,2]
[400765485,1767822637774,-500.0,0.00014296,2]
[400765487,1767822637784,-500.0,0.00014296,2]
[400765489,1767822637794,-500.0,0.00014296,2]
[400765491,1767822637803,-422.50655684,0.00014296,2]
[400765493,1767822637815,-77.49344316,0.00014296,2]
[400765495,1767822637825,-312.845427,0.00014296,2]
[400765498,1767822637835,-500.0,0.00014296,2]
[400765500,1767822637844,-500.0,0.00014296,2]
[400765502,1767822637854,-500.0,0.00014296,2]
[400765504,1767822637863,-500.0,0.00014296,2]
[400765506,1767822637874,-557.46856987,0.00014297,2]
[400765512,1767822637931,-408914.86141132,0.00014297,2]
[400765514,1767822637940,-2500.0,0.00014297,2]
[400765516,1767822637950,-1138.62472585,0.00014333,2]
[400765518,1767822637960,-300.0,0.00014333,2]
[400765520,1767822637970,-466.01818094,0.00014334,2]
[400765522,1767822637979,-500.0,0.00014334,2]
[400765523,1767822637988,-200.0,0.00014334,2]
[400765525,1767822637999,-501.0,0.00014334,2]
[400765527,1767822638011,-500.0,0.00014334,2]
[400765529,1767822638020,-427.0,0.00014344,2]
[400765531,1767822638030,-250.0,0.0001436,2]
[400765533,1767822638039,-195.0,0.0001436,2]
[400765535,1767822638049,-500.0,0.00014388,2]
[400765537,1767822638059,-227.62898952,0.00014388,2]
[400765539,1767822638069,-500.0,0.00014388,2]
[400765541,1767822638079,-150.0,0.00014388,2]
[400765543,1767822638089,-500.0,0.00014388,2]
[400765545,1767822638099,-500.0,0.00014388,2]
[400765547,1767822638108,-501.0,0.00014388,2]
[400765549,1767822638118,-500.0,0.00014388,2]
[400765551,1767822638127,-206.1,0.00014394,2]
[400765553,1767822638137,-150.0,0.00014395,2]
[400765555,1767822638146,-500.0,0.00014396,2]
[400765557,1767822638155,-564.95924296,0.00014396,2]
[400765559,1767822638164,-500.0,0.00014396,2]
[400765561,1767822638173,-500.0,0.00014396,2]
[400765563,1767822638182,-500.0,0.00014396,2]
[400765565,1767822638192,-500.0,0.00014396,2]
[400765567,1767822638201,-500.0,0.00014396,2]
[400765569,1767822638211,-500.0,0.00014396,2]
[400765571,1767822638220,-500.0,0.00014396,2]
[400765573,1767822638230,-1311.91,0.00014396,2]
[400765575,1767822638240,-3687.07,0.00014397,2]
[400765577,1767822638250,-150.99,0.00014397,2]
[400765579,1767822638259,-25649.89,0.00014397,2]
[400765581,1767822638269,-57097.28,0.00014397,2]
[400765583,1767822638280,-9999.99,0.00014397,2]
[400765585,1767822638291,-3174.75,0.00014397,2]
[400765588,1767822638303,-9999.99,0.00014397,2]
[400765590,1767822638313,-1178.51,0.00014397,2]
[400765592,1767822638322,-150.99,0.00014397,2]
[400765594,1767822638332,-42324.09,0.00014397,2]
[400765596,1767822638341,-4999.99,0.00014397,2]
[400765598,1767822638351,-1000.0,0.00014399,2]
[400765600,1767822638361,-500.0,0.00014399,2]
[400765602,1767822638370,-427.0,0.00014399,2]
[400765604,1767822638380,-500.0,0.00014443,2]
[400765606,1767822638389,-150.0,0.00014443,2]
[400765608,1767822638399,-500.0,0.00014443,2]
[400765610,1767822638409,-501.0,0.00014443,2]
[400765612,1767822638419,-500.0,0.00014443,2]
[400765614,1767822638428,-427.0,0.00014454,2]
[400765616,1767822638438,-165.54,0.00014485,2]
[400765618,1767822638447,-150.0,0.00014494,2]
[400765620,1767822638456,-500.0,0.00014497,2]
[400765622,1767822638466,-420.4969783,0.00014497,2]
[400765624,1767822638475,-508.16431547,0.00014497,2]
[400765626,1767822638486,-500.0,0.00014497,2]
[400765628,1767822638495,-500.0,0.00014497,2]
[400765630,1767822638505,-500.0,0.00014497,2]
[400765632,1767822638514,-500.0,0.00014497,2]
[400765634,1767822638524,-500.0,0.00014497,2]
[400765637,1767822638534,-300.32189939,0.00014497,2]
[400765639,1767822638543,-500.0,0.00014497,2]
[400765641,1767822638553,-500.0,0.00014497,2]
[400765643,1767822638562,-500.0,0.00014497,2]
[400765645,1767822638571,-500.0,0.00014498,2]
[400765647,1767822638580,-250.0,0.00014498,2]
[400765649,1767822638589,-500.0,0.00014498,2]
[400765651,1767822638599,-501.0,0.00014498,2]
[400765653,1767822638608,-500.0,0.00014498,2]
[400765655,1767822638617,-515.01569195,0.00014498,2]
[400765657,1767822638626,-500.0,0.00014498,2]
[400765659,1767822638635,-500.0,0.00014498,2]
[400765661,1767822638645,-500.0,0.00014498,2]
[400765663,1767822638654,-500.0,0.00014498,2]
[400765665,1767822638664,-500.0,0.00014498,2]
[400765667,1767822638673,-500.0,0.00014498,2]
[400765669,1767822638683,-500.0,0.00014498,2]
[400765671,1767822638693,-500.0,0.00014498,2]
[400765673,1767822638702,-500.0,0.00014498,2]
[400765675,1767822638712,-500.0,0.00014498,2]
[400765677,1767822638721,-500.0,0.00014498,2]
[400765679,1767822638731,-500.0,0.00014498,2]
[400765681,1767822638741,-500.0,0.00014498,2]
[400765683,1767822638751,-500.0,0.00014498,2]
[400765685,1767822638761,-310.42839677,0.00014498,2]
[400765687,1767822638771,-500.0,0.00014498,2]
[400765689,1767822638781,-500.0,0.00014498,2]
[400765691,1767822638792,-506.42348911,0.00014498,2]
[400765693,1767822638801,-500.0,0.00014498,2]
[400765695,1767822638810,-500.0,0.00014498,2]
[400765697,1767822638820,-500.0,0.00014498,2]
[400765699,1767822638830,-500.0,0.00014498,2]
[400765701,1767822638840,-500.0,0.00014498,2]
[400765703,1767822638850,-500.0,0.00014498,2]
[400765705,1767822638859,-500.0,0.00014498,2]
[400765707,1767822638869,-500.0,0.00014498,2]
[400765709,1767822638880,-500.0,0.00014498,2]
[400765711,1767822638890,-283.51547018,0.00014498,2]
[400765713,1767822638900,-427.0,0.00014509,2]
[400765715,1767822638912,-500.0,0.00014553,2]
[400765717,1767822638922,-500.0,0.00014553,2]
[400765719,1767822638931,-501.0,0.00014553,2]
[400765721,1767822638941,-519.25199485,0.00014553,2]
[400765723,1767822638952,-427.0,0.00014563,2]
[400765725,1767822638972,-5945.9,0.00014591,2]
[400765727,1767822638984,-500.0,0.00014608,2]
[400765729,1767822638993,-500.0,0.00014608,2]
[400765731,1767822639004,-501.0,0.00014608,2]
[400765733,1767822639018,-427.0,0.00014618,2]
[400765735,1767822639028,-500.0,0.00014662,2]
[400765737,1767822639038,-501.0,0.00014662,2]
[400765740,1767822639049,-1311.91,0.0001467,2]
[400765742,1767822639059,-577.73,0.00014673,2]
[400765744,1767822639069,-500.0,0.00014673,2]
[400765746,1767822639079,-427.0,0.00014673,2]
[400765748,1767822639091,-8316.9699585,0.00014697,2]
[400765750,1767822639101,-500.0,0.00014698,2]
[400765752,1767822639111,-10511.28786376,0.00014699,2]
[400765754,1767822639122,-500.0,0.00014717,2]
[400765756,1767822639132,-501.0,0.00014717,2]
[400765758,1767822639143,-427.0,0.00014728,2]
[400765760,1767822639153,-500.0,0.00014772,2]
[400765762,1767822639163,-501.0,0.00014772,2]
[400765764,1767822639172,-427.0,0.00014783,2]
[400765766,1767822639182,-693.0,0.00014799,2]
[400765768,1767822639192,-318.23239528,0.00014813,2]
[400765770,1767822639202,-500.0,0.00014827,2]
[400765772,1767822639211,-501.0,0.00014827,2]
[400765774,1767822639220,-427.0,0.00014837,2]
[400765776,1767822639231,-693.0,0.00014854,2]
[400765778,1767822639240,-500.0,0.00014882,2]
[400765781,1767822639250,-501.0,0.00014882,2]
[400765782,1767822639259,-427.0,0.00014892,2]
[400765784,1767822639268,-926.86283534,0.00014899,2]
[400765787,1767822639278,-693.0,0.00014909,2]
[400765789,1767822639286,-500.0,0.00014936,2]
[400765790,1767822639297,-501.0,0.00014936,2]
[400765792,1767822639306,-1311.91,0.00014944,2]
[400765794,1767822639315,-500.0,0.00014947,2]
[400765821,1767822639699,-427.0,0.00014947,2]
[400765823,1767822639709,-693.0,0.00014963,2]
[400765825,1767822639719,-500.0,0.00014991,2]
[400765827,1767822639728,-501.0,0.00014991,2]
[400765829,1767822639738,-427.0,0.00015002,2]
[400765832,1767822639748,-693.0,0.00015018,2]
[400765833,1767822639757,-500.0,0.00015046,2]
[400765836,1767822639766,-501.0,0.00015046,2]
[400765838,1767822639775,-427.0,0.00015057,2]
[400765840,1767822639784,-161.8794398,0.00015073,2]
[400765841,1767822639793,-500.0,0.00015073,2]
[400765844,1767822639803,-169.74559645,0.00015073,2]
[400765845,1767822639812,-500.0,0.00015073,2]
[400765847,1767822639822,-500.0,0.00015073,2]
[400765849,1767822639831,-500.0,0.00015073,2]
[400765851,1767822639840,-536.66734105,0.00015073,2]
[400765854,1767822639849,-500.0,0.00015073,2]
[400765855,1767822639859,-500.0,0.00015073,2]
[400765858,1767822639868,-500.0,0.00015073,2]
[400765859,1767822639878,-500.0,0.00015073,2]
[400765862,1767822639887,-500.0,0.00015073,2]
[400765864,1767822639898,-500.0,0.00015073,2]
[400765866,1767822639908,-500.0,0.00015073,2]
[400765868,1767822639916,-210.44596134,0.00015073,2]
[400765870,1767822639926,-411.91622264,0.00015073,2]
[400765871,1767822639935,-500.0,0.00015073,2]
[400765873,1767822639944,-500.0,0.00015073,2]
[400765875,1767822639954,-500.0,0.00015073,2]
[400765877,1767822639963,-500.0,0.00015073,2]
[400765880,1767822639972,-500.0,0.00015073,2]
[400765881,1767822639982,-413.08976684,0.00015073,2]
[400765884,1767822639991,-552.50710843,0.00015073,2]
[400765885,1767822640001,-502.16378022,0.00015073,2]
[400765887,1767822640013,-500.0,0.00015073,2]
[400765889,1767822640023,-556.0741427,0.00015073,2]
[400765891,1767822640032,-500.0,0.00015073,2]
[400765893,1767822640041,-500.0,0.00015073,2]
[400765895,1767822640050,-500.0,0.00015073,2]
[400765897,1767822640060,-500.0,0.00015073,2]
[400765899,1767822640069,-693.0,0.00015073,2]
[400765901,1767822640079,-8316.9699585,0.00015098,2]
[400765903,1767822640089,-10511.28786376,0.00015099,2]
[400765905,1767822640098,-406.89851448,0.00015101,2]
[400765908,1767822640109,-501.0,0.00015101,2]
[400765910,1767822640119,-427.0,0.00015111,2]
[400765911,1767822640128,-693.0,0.00015128,2]
[400765913,1767822640137,-501.0,0.00015156,2]
[400765916,1767822640148,-427.0,0.00015166,2]
[400765918,1767822640158,-693.0,0.00015183,2]
[400765919,1767822640167,-400.58303632,0.00015194,2]
[400765922,1767822640176,-500.0,0.00015194,2]
[400765923,1767822640185,-501.0,0.0001521,2]
[400765925,1767822640195,-1311.91,0.00015218,2]
[400765928,1767822640204,-427.0,0.00015221,2]
[400765929,1767822640213,-693.0,0.00015237,2]
[400765932,1767822640222,-501.0,0.00015265,2]
[400765933,1767822640231,-427.0,0.00015276,2]
[400765935,1767822640241,-500.0,0.00015279,2]
[400765937,1767822640250,-500.0,0.00015279,2]
[400765939,1767822640260,-693.0,0.00015292,2]
[400765941,1767822640269,-501.0,0.0001532,2]
[400765943,1767822640279,-318.23239528,0.00015328,2]
[400765945,1767822640288,-427.0,0.0001533,2]
[400765948,1767822640298,-693.0,0.00015347,2]
[400765950,1767822640307,-501.0,0.00015375,2]
[400765951,1767822640316,-439.79963653,0.00015385,2]
[400765953,1767822640326,-500.0,0.00015397,2]
[400765955,1767822640335,-693.0,0.00015402,2]
[400765958,1767822640344,-167.14,0.00015412,2]
[400765959,1767822640354,-501.0,0.00015429,2]
[400765961,1767822640363,-693.0,0.00015457,2]
[400765963,1767822640373,-516.0,0.00015484,2]
[400765966,1767822640382,-1311.91,0.00015492,2]
[400765967,1767822640392,-8316.9699585,0.00015498,2]
[400765970,1767822640402,-926.86283534,0.00015499,2]
[400765971,1767822640411,-10511.28786376,0.00015499,2]
[400765973,1767822640420,-693.0,0.00015511,2]
[400765975,1767822640429,-255.0,0.00015518,2]
[400765978,1767822640439,-693.0,0.00015566,2]
[400765980,1767822640448,-428.98,0.00015572,2]
[400765982,1767822640457,-1000.0,0.00015621,2]
[400765983,1767822640466,-1000.0,0.00015621,2]
[400765985,1767822640475,-949.69083076,0.00015621,2]
[400765987,1767822640484,-1000.0,0.00015621,2]
[400765989,1767822640494,-1000.0,0.00015621,2]
[400765991,1767822640503,-1000.0,0.00015621,2]
[400765993,1767822640513,-515.65451742,0.00015621,2]
[400765996,1767822640523,-821.82288534,0.00015621,2]
[400765997,1767822640532,-1000.0,0.00015621,2]
[400765999,1767822640541,-1000.0,0.00015621,2]
[400766001,1767822640550,-1000.0,0.00015621,2]
[400766004,1767822640560,-1000.0,0.00015621,2]
[400766005,1767822640569,-1000.0,0.00015621,2]
[400766008,1767822640578,-1029.13192156,0.00015621,2]
[400766010,1767822640588,-1000.0,0.00015621,2]
[400766011,1767822640597,-1009.96734995,0.00015621,2]
[400766014,1767822640606,-1128.37348131,0.00015621,2]
[400766016,1767822640615,-500.73448024,0.00015621,2]
[400766018,1767822640624,-693.0,0.00015621,2]
[400766020,1767822640633,-420.0,0.00015657,2]
[400766021,1767822640642,-693.0,0.00015676,2]
[400766023,1767822640651,-1000.0,0.00015691,2]
[400766026,1767822640661,-152.0,0.00015695,2]
[400766028,1767822640670,-152.0,0.00015695,2]
[400766030,1767822640679,-1680.0,0.00015726,2]
[400766032,1767822640688,-693.0,0.00015731,2]
[400766034,1767822640698,-1311.91,0.00015766,2]
[400766036,1767822640707,-250.0,0.00015766,2]
[400766038,1767822640716,-300.0,0.00015766,2]
[400766040,1767822640726,-354.35076502,0.00015766,2]
[400766042,1767822640735,-2500.0,0.00015766,2]
[400766044,1767822640745,-250.0,0.00015767,2]
[400766046,1767822640755,-195.0,0.00015767,2]
[400766048,1767822640764,-693.0,0.00015785,2]
[400766050,1767822640773,-195.0,0.00015826,2]
[400766052,1767822640782,-693.0,0.0001584,2]
[400766054,1767822640791,-318.23239528,0.00015842,2]
[400766056,1767822640801,-693.0,0.00015895,2]
[400766058,1767822640810,-8316.9699585,0.00015898,2]
[400766060,1767822640819,-10511.28786376,0.00015899,2]
[400766062,1767822640829,-1976.22824177,0.000159,2]
[400766064,1767822640839,-1000.0,0.00015918,2]
[400766066,1767822640850,-500.0,0.00015945,2]
[400766068,1767822640859,-693.0,0.0001595,2]
[400766070,1767822640869,-249.063448,0.00016,2]
[400766072,1767822640878,-693.0,0.00016004,2]
[400766074,1767822640887,-1311.91,0.0001604,2]
[400766076,1767822640896,-707.2212164,0.00016059,2]
[400766078,1767822640905,-900.0,0.00016082,2]
[400766080,1767822640914,-3000.0,0.00016082,2]
[400766082,1767822640924,-926.86283534,0.000161,2]
[400766084,1767822640933,-419.33594592,0.00016168,2]
[400766086,1767822640943,-500.0,0.00016168,2]
[400766088,1767822640952,-1500.0,0.00016168,2]
[400766090,1767822640961,-500.0,0.00016168,2]
[400766092,1767822640971,-1500.0,0.00016168,2]
[400766094,1767822640981,-1500.0,0.00016168,2]
[400766096,1767822640991,-876.44941512,0.00016168,2]
[400766098,1767822641000,-500.0,0.00016168,2]
[400766100,1767822641013,-500.0,0.00016168,2]
[400766102,1767822641023,-1500.0,0.00016168,2]
[400766104,1767822641033,-1500.0,0.00016168,2]
[400766106,1767822641043,-500.0,0.00016247,2]
[400766108,1767822641054,-8316.9699585,0.00016299,2]
[400766110,1767822641063,-10511.28786376,0.000163,2]
[400766112,1767822641072,-1311.91,0.00016314,2]
[400766114,1767822641084,-1100.0,0.00016356,2]
[400766116,1767822641093,-318.23239528,0.00016357,2]
[400766118,1767822641102,-1455.64956121,0.00016428,2]
[400766120,1767822641111,-500.0,0.00016437,2]
[400766122,1767822641120,-500.0,0.00016438,2]
[400766124,1767822641130,-605.8550883,0.00016438,2]
[400766126,1767822641139,-605.8550883,0.00016438,2]
[400766128,1767822641148,-605.8550883,0.00016438,2]
[400766130,1767822641157,-605.8550883,0.00016438,2]
[400766132,1767822641166,-605.8550883,0.00016438,2]
[400766134,1767822641175,-605.8550883,0.00016438,2]
[400766136,1767822641184,-605.8550883,0.00016438,2]
[400766138,1767822641193,-605.8550883,0.00016438,2]
[400766140,1767822641202,-605.8550883,0.00016438,2]
[400766142,1767822641211,-605.8550883,0.00016438,2]
[400766144,1767822641220,-605.8550883,0.00016438,2]
[400766146,1767822641229,-605.8550883,0.00016438,2]
[400766148,1767822641240,-605.8550883,0.00016438,2]
[400766150,1767822641249,-605.8550883,0.00016438,2]
[400766152,1767822641258,-605.8550883,0.00016438,2]
[400766154,1767822641267,-605.8550883,0.00016438,2]
[400766156,1767822641275,-605.8550883,0.00016438,2]
[400766158,1767822641285,-605.8550883,0.00016438,2]
[400766160,1767822641294,-605.8550883,0.00016438,2]
[400766162,1767822641303,-605.8550883,0.00016438,2]
[400766164,1767822641312,-605.8550883,0.00016438,2]
[400766166,1767822641321,-605.8550883,0.00016438,2]
[400766168,1767822641331,-605.8550883,0.00016438,2]
[400766170,1767822641340,-605.8550883,0.00016438,2]
[400766172,1767822641349,-605.8550883,0.00016438,2]
[400766174,1767822641359,-605.8550883,0.00016438,2]
[400766176,1767822641368,-605.8550883,0.00016438,2]
[400766178,1767822641377,-605.8550883,0.00016438,2]
[400766180,1767822641386,-605.8550883,0.00016438,2]
[400766182,1767822641396,-605.8550883,0.00016438,2]
[400766184,1767822641405,-605.8550883,0.00016438,2]
[400766186,1767822641414,-605.8550883,0.00016438,2]
[400766188,1767822641423,-605.8550883,0.00016438,2]
[400766190,1767822641433,-605.8550883,0.00016438,2]
[400766192,1767822641442,-605.8550883,0.00016438,2]
[400766194,1767822641451,-605.8550883,0.00016438,2]
[400766196,1767822641460,-605.8550883,0.00016438,2]
[400766198,1767822641470,-605.8550883,0.00016438,2]
[400766199,1767822641479,-605.8550883,0.00016438,2]
[400766201,1767822641488,-605.8550883,0.00016438,2]
[400766203,1767822641497,-605.8550883,0.00016438,2]
[400766205,1767822641507,-605.8550883,0.00016438,2]
[400766207,1767822641516,-605.8550883,0.00016438,2]
[400766209,1767822641526,-605.8550883,0.00016438,2]
[400766211,1767822641535,-605.8550883,0.00016438,2]
[400766213,1767822641544,-605.8550883,0.00016438,2]
[400766215,1767822641553,-605.8550883,0.00016438,2]
[400766217,1767822641563,-605.8550883,0.00016438,2]
[400766219,1767822641572,-17675.95,0.00016438,2]
[400766221,1767822641581,-800.0,0.00016438,2]
[400766223,1767822641591,-500.0,0.00016493,2]
[400766225,1767822641600,-577.73,0.00016507,2]
[400766227,1767822641609,-1000.0,0.00016515,2]
[400766229,1767822641618,-1000.0,0.00016515,2]
[400766231,1767822641627,-500.0,0.00016548,2]
[400766233,1767822641636,-2647.6,0.00016585,2]
[400766235,1767822641646,-150.0,0.00016587,2]
[400766237,1767822641657,-150.0,0.00016587,2]
[400766239,1767822641666,-150.0,0.00016587,2]
[400766241,1767822641675,-150.0,0.00016587,2]
[400766243,1767822641684,-150.0,0.00016587,2]
[400766245,1767822641693,-178.03708143,0.00016587,2]
[400766247,1767822641702,-1311.91,0.00016588,2]
[400766249,1767822641711,-188.33554362,0.00016602,2]
[400766251,1767822641720,-1000.0,0.00016639,2]
[400766253,1767822641729,-1000.0,0.0001664,2]
[400766255,1767822641738,-150.0,0.00016642,2]
[400766257,1767822641747,-150.0,0.00016642,2]
[400766259,1767822641756,-150.0,0.00016642,2]
[400766260,1767822641765,-271.23482998,0.00016642,2]
[400766263,1767822641775,-500.0,0.00016643,2]
[400766264,1767822641783,-500.0,0.00016643,2]
[400766266,1767822641793,-628.50709886,0.00016643,2]
[400766268,1767822641802,-500.0,0.00016643,2]
[400766270,1767822641811,-507.8387061,0.00016643,2]
[400766272,1767822641820,-1000.0,0.00016693,2]
[400766274,1767822641830,-150.0,0.00016697,2]
[400766276,1767822641839,-204.51452503,0.00016697,2]
[400766278,1767822641849,-200.0,0.00016697,2]
[400766280,1767822641858,-8316.9699585,0.00016699,2]
[400766282,1767822641866,-926.86283534,0.000167,2]
[400766284,1767822641875,-10511.28786376,0.000167,2]
[400766286,1767822641884,-1000.0,0.00016716,2]
[400766288,1767822641893,-2000.0,0.00016716,2]
[400766290,1767822641903,-1005.38555235,0.00016716,2]
[400766292,1767822641914,-2000.0,0.00016716,2]
[400766294,1767822641923,-152.22115376,0.00016716,2]
[400766296,1767822641932,-2000.0,0.00016716,2]
[400766298,1767822641942,-433.0,0.00016727,2]
[400766300,1767822641951,-150.0,0.00016751,2]
[400766302,1767822641960,-1000.0,0.00016752,2]
[400766304,1767822641970,-31369.21680262,0.00016767,2]
[400766306,1767822641979,-150.0,0.00016767,2]
[400766308,1767822641989,-1000.0,0.00016788,2]
[400766310,1767822641998,-175.21866833,0.00016806,2]
[400766312,1767822642009,-448.72451731,0.0001683,2]
[400766314,1767822642018,-578.20924308,0.0001683,2]
[400766316,1767822642027,-574.12855637,0.0001683,2]
[400766318,1767822642037,-1500.0,0.0001683,2]
[400766319,1767822642047,-1500.0,0.0001683,2]
[400766321,1767822642056,-1500.0,0.0001683,2]
[400766323,1767822642065,-1500.0,0.0001683,2]
[400766325,1767822642074,-500.0,0.0001683,2]
[400766327,1767822642084,-1500.0,0.0001683,2]
[400766329,1767822642094,-500.0,0.0001683,2]
[400766331,1767822642103,-500.0,0.0001683,2]
[400766333,1767822642118,-500.0,0.0001683,2]
[400766335,1767822642127,-1500.0,0.0001683,2]
[400766337,1767822642136,-151.55763012,0.0001683,2]
[400766339,1767822642145,-1500.0,0.0001683,2]
[400766341,1767822642154,-500.0,0.0001683,2]
[400766343,1767822642163,-500.0,0.0001683,2]
[400766345,1767822642173,-322.6107,0.0001683,2]
[400766347,1767822642182,-500.0,0.0001683,2]
[400766349,1767822642191,-1500.0,0.0001683,2]
[400766351,1767822642200,-500.0,0.0001683,2]
[400766353,1767822642209,-500.0,0.0001683,2]
[400766356,1767822642218,-1500.0,0.0001683,2]
[400766359,1767822642227,-500.0,0.0001683,2]
[400766360,1767822642237,-500.0,0.0001683,2]
[400766362,1767822642247,-500.0,0.0001683,2]
[400766364,1767822642257,-1500.0,0.0001683,2]
[400766366,1767822642266,-500.0,0.0001683,2]
[400766368,1767822642275,-500.0,0.0001683,2]
[400766370,1767822642284,-1500.0,0.0001683,2]
[400766372,1767822642293,-500.0,0.0001683,2]
[400766374,1767822642302,-500.0,0.0001683,2]
[400766376,1767822642311,-500.0,0.0001683,2]
[400766378,1767822642320,-500.0,0.0001683,2]
[400766380,1767822642330,-500.0,0.0001683,2]
[400766382,1767822642339,-500.0,0.0001683,2]
[400766384,1767822642348,-500.0,0.0001683,2]
[400766386,1767822642357,-200.0,0.0001683,2]
[400766388,1767822642367,-500.0,0.0001683,2]
[400766390,1767822642376,-207.4,0.0001683,2]
[400766392,1767822642385,-215.0738,0.0001683,2]
[400766394,1767822642394,-223.0315306,0.0001683,2]
[400766396,1767822642403,-231.28369723,0.0001683,2]
[400766398,1767822642413,-239.84119403,0.0001683,2]
[400766400,1767822642422,-500.0,0.0001683,2]
[400766402,1767822642431,-248.71531821,0.0001683,2]
[400766404,1767822642440,-500.0,0.0001683,2]
[400766405,1767822642449,-257.91778498,0.0001683,2]
[400766407,1767822642458,-500.0,0.0001683,2]
[400766408,1767822642468,-267.46074303,0.0001683,2]
[400766409,1767822642477,-500.0,0.0001683,2]
[400766410,1767822642486,-277.35679052,0.0001683,2]
[400766411,1767822642495,-500.0,0.0001683,2]
[400766412,1767822642505,-500.0,0.0001683,2]
[400766413,1767822642514,-500.0,0.0001683,2]
[400766414,1767822642523,-500.0,0.0001683,2]
[400766415,1767822642532,-500.0,0.0001683,2]
[400766416,1767822642541,-620.0,0.0001683,2]
[400766417,1767822642550,-500.0,0.0001683,2]
[400766418,1767822642559,-500.0,0.0001683,2]
[400766419,1767822642569,-2000.0,0.0001683,2]
[400766420,1767822642578,-2000.0,0.0001683,2]
[400766421,1767822642587,-2000.0,0.0001683,2]
[400766422,1767822642596,-2000.0,0.0001683,2]
[400766423,1767822642605,-250.0,0.0001683,2]